fUST/lending_fUST_20240830
["ID","MTS","AMOUNT","RATE_DAILY","PERIOD"]
[336664705,1725004247239,-518.49,0.00039065,120]
[336664707,1725004247250,-484.77916953,0.00039065,120]
[336664709,1725004247260,-500.0,0.00039065,120]
[336664711,1725004247270,-363.67542781,0.00039065,120]
[336664713,1725004247279,-500.0,0.00039065,120]
[336664715,1725004247290,-500.0,0.00039065,120]
[336664717,1725004247299,-500.0,0.00039065,120]
[336664719,1725004247308,-500.0,0.00039065,120]
[336664721,1725004247318,-500.0,0.00039065,120]
[336664724,1725004247337,-500.0,0.00039065,120]
[336664727,1725004247349,-500.0,0.00039065,60]
[336664729,1725004247360,-233.67,0.00039065,120]
[336664731,1725004247369,-500.0,0.00039065,120]
[336664733,1725004247379,-500.0,0.00039065,120]
[336664735,1725004247389,-182.1199528,0.00039065,120]
[336664737,1725004247399,-500.0,0.00039065,120]
[336664739,1725004247409,-1308.17,0.00039065,120]
[336664741,1725004247420,-500.0,0.00039065,120]
[336664744,1725004247432,-500.0,0.00039065,120]
[336664746,1725004247442,-500.0,0.00039065,120]
[336664748,1725004247451,-348.46923334,0.00039065,120]
[336664750,1725004247462,-500.0,0.00039065,120]
[336664752,1725004247473,-500.0,0.00039065,120]
[336664754,1725004247485,-1804.23092936,0.00039123,2]
[336664756,1725004247496,-512.69,0.00039175,120]
[336664758,1725004247506,-500.0,0.00039175,120]
[336664761,1725004247516,-500.0,0.00039178,120]
[336664763,1725004247527,-628.66,0.00039178,120]
[336664765,1725004247537,-1037.86,0.00039178,120]
[336664767,1725004247547,-1687.33,0.00039178,120]
[336664769,1725004247558,-900.08,0.00039178,120]
[336664771,1725004247568,-531.68,0.00039178,120]
[336664773,1725004247579,-500.0,0.00039178,120]
[336664775,1725004247588,-514.68,0.00039178,120]
[336664777,1725004247598,-879.55,0.00039178,120]
[336664780,1725004247610,-500.0,0.00039178,120]
[336664782,1725004247620,-500.0,0.00039178,120]
[336664784,1725004247629,-917.42,0.00039178,120]
[336664786,1725004247639,-5780.89,0.00039178,8]
[336664788,1725004247648,-824.4,0.00039178,120]
[336664790,1725004247657,-500.0,0.00039178,120]
[336664792,1725004247667,-594.17,0.00039178,120]
[336664794,1725004247678,-540.61008221,0.00039338,120]
[336664796,1725004247689,-500.0,0.00039339,120]
[336664798,1725004247699,-509.23,0.00039339,120]
[336664801,1725004247710,-500.0,0.00039339,120]
[336664803,1725004247720,-500.0,0.00039339,120]
[336664805,1725004247730,-1308.17,0.00039339,120]
[336664807,1725004247740,-18309.6,0.00039442,3]
[336664809,1725004247750,-512.69,0.00039449,120]
[336664811,1725004247768,-498.88721334,0.00039449,120]
[336664813,1725004247778,-500.0,0.00039452,120]
[336664815,1725004247788,-628.66,0.00039452,120]
[336664817,1725004247798,-1037.86,0.00039452,120]
[336664819,1725004247808,-1687.33,0.00039452,120]
[336664821,1725004247817,-900.08,0.00039452,120]
[336664823,1725004247827,-531.68,0.00039452,120]
[336664825,1725004247839,-500.0,0.00039452,120]
[336664828,1725004247852,-514.68,0.00039452,120]
[336664830,1725004247862,-879.55,0.00039452,120]
[336664832,1725004247872,-500.0,0.00039452,120]
[336664834,1725004247882,-500.0,0.00039452,120]
[336664836,1725004247892,-917.42,0.00039452,120]
[336664838,1725004247902,-5780.89,0.00039452,8]
[336664840,1725004247912,-824.4,0.00039452,120]
[336664841,1725004247925,-500.0,0.00039452,120]
[336664842,1725004247935,-594.17,0.00039452,120]
[336664843,1725004247944,-1308.17,0.00039613,120]
[336664844,1725004247953,-600.0,0.00039696,7]
[336664845,1725004247963,-512.69,0.00039723,120]
[336664846,1725004247972,-500.0,0.00039726,120]
[336664847,1725004247981,-628.66,0.00039726,120]
[336664848,1725004247995,-1037.86,0.00039726,120]
[336664849,1725004248006,-1687.33,0.00039726,120]
[336664850,1725004248017,-900.08,0.00039726,120]
[336664851,1725004248027,-531.68,0.00039726,120]
[336664852,1725004248036,-500.0,0.00039726,120]
[336664853,1725004248046,-514.68,0.00039726,120]
[336664854,1725004248057,-879.55,0.00039726,120]
[336664855,1725004248066,-500.0,0.00039726,120]
[336664856,1725004248076,-163.46,0.00039726,120]
[336664857,1725004248086,-917.42,0.00039726,120]
[336664858,1725004248095,-5780.89,0.00039726,8]
[336664859,1725004248104,-824.4,0.00039726,120]
[336664860,1725004248114,-500.0,0.00039726,120]
[336664861,1725004248124,-594.17,0.00039726,120]
[336664862,1725004248134,-52216.509406,0.00039788,2]
[336664863,1725004248143,-36100.00427302,0.000398,2]
[336664864,1725004248153,-503.74077903,0.000398,5]
[336664866,1725004248163,-407.81710597,0.00039882,2]
[336664868,1725004248173,-11997.93911639,0.00039882,2]
[336664869,1725004248182,-151.0,0.00039882,14]
[336664871,1725004248191,-151.0,0.00039882,14]
[336664873,1725004248200,-151.0,0.00039882,14]
[336664875,1725004248210,-448.758955,0.00039882,14]
[336664877,1725004248220,-448.758955,0.00039882,14]
[336664879,1725004248231,-151.0,0.00039882,14]
[336664881,1725004248241,-1308.17,0.00039887,120]
[336664883,1725004248250,-21889.5366993,0.000399,5]
[336666141,1725004440778,165.077228,0.0001863,2]
[336666144,1725004835941,205.138889,0.00014247,2]
[336666145,1725004959367,165.077228,0.0001863,2]
[336666177,1725005431833,-150.0,0.00021,2]
[336666179,1725005431845,-153.89,0.000266,31]
[336666180,1725005431856,-178.95409509,0.00028723,2]
[336666228,1725005437936,-321.04590491,0.00028723,2]
[336666229,1725005437945,-503.48958682,0.0003,2]
[336666230,1725005437956,-500.0,0.00030154,7]
[336666231,1725005437968,-153.89,0.000311,31]
[336666232,1725005437978,-153.89,0.000311,31]
[336666233,1725005437989,-150.0,0.0003145,14]
[336666234,1725005438000,-150.0,0.0003145,14]
[336666235,1725005438010,-200.0,0.0003145,14]
[336666236,1725005438020,-205.72703006,0.0003145,7]
[336666237,1725005438029,-500.0,0.00031689,7]
[336666238,1725005438040,-150.0,0.00034156,2]
[336666239,1725005438052,-522.0,0.00034156,2]
[336666240,1725005438063,-150.0,0.000356,30]
[336666241,1725005438072,-297.191634,0.00035616,120]
[336666242,1725005438082,-153.89,0.000357,31]
[336666243,1725005438092,-153.89,0.000357,31]
[336666244,1725005438101,-500.0,0.00036019,7]
[336666245,1725005438111,-150.0,0.000366,30]
[336666246,1725005438121,-900.0,0.00037367,7]
[336666247,1725005438130,-200.0,0.000376,30]
[336666248,1725005438140,-207.7907237,0.0003774,2]
[336666249,1725005438150,-800.0,0.00037898,7]
[336666250,1725005438160,-1443.3847435,0.00038256,2]
[336666251,1725005438170,-500.0,0.00038345,15]
[336666252,1725005438180,-500.0,0.00038345,15]
[336666253,1725005438192,-500.0,0.00038345,15]
[336666254,1725005438203,-500.0,0.00038345,15]
[336666255,1725005438214,-500.0,0.00038345,15]
[336666256,1725005438224,-500.0,0.00038345,15]
[336666257,1725005438235,-260.92295026,0.00038345,15]
[336666258,1725005438250,-826.33,0.00038346,3]
[336666259,1725005438259,-12914.96,0.00038346,3]
[336666260,1725005438269,-24121.16,0.00038346,3]
[336666261,1725005438278,-20100.96,0.00038346,3]
[336666262,1725005438288,-16750.8,0.00038346,3]
[336666263,1725005438299,-500.0,0.00038355,15]
[336666264,1725005438311,-194.28657341,0.00038355,15]
[336666265,1725005438321,-500.0,0.00038355,15]
[336666266,1725005438331,-203.98378544,0.00038355,15]
[336666267,1725005438342,-500.0,0.00038355,15]
[336666268,1725005438358,-500.0,0.00038355,15]
[336666269,1725005438368,-500.0,0.00038355,15]
[336666270,1725005438378,-279.34289346,0.00038355,15]
[336666271,1725005438390,-500.0,0.00038355,15]
[336666272,1725005438400,-500.0,0.00038355,15]
[336666273,1725005438411,-500.0,0.00038355,15]
[336666274,1725005438422,-500.0,0.00038355,15]
[336666275,1725005438432,-500.0,0.00038355,15]
[336666276,1725005438442,-297.26766824,0.00038355,15]
[336666277,1725005438453,-500.0,0.00038355,15]
[336666278,1725005438465,-500.0,0.00038355,15]
[336666279,1725005438474,-500.0,0.00038355,15]
[336666280,1725005438483,-500.0,0.00038355,15]
[336666281,1725005438493,-550.0,0.00038355,15]
[336666282,1725005438505,-501.45767318,0.00038356,120]
[336666283,1725005438515,-500.0,0.00038356,7]
[336666284,1725005438525,-500.0,0.00038356,120]
[336666285,1725005438534,-500.0,0.00038356,120]
[336666286,1725005438544,-500.0,0.00038356,120]
[336666287,1725005438554,-500.0,0.00038356,120]
[336666288,1725005438564,-462.22655937,0.00038356,120]
[336666289,1725005438576,-500.0,0.00038356,120]
[336666290,1725005438586,-500.0,0.00038356,120]
[336666291,1725005438595,-186.73919535,0.00038356,120]
[336666292,1725005438604,-502.14687425,0.00038356,120]
[336666293,1725005438614,-500.0,0.00038356,120]
[336666294,1725005438624,-500.0,0.00038356,120]
[336666295,1725005438635,-500.0,0.00038356,120]
[336666296,1725005438646,-503.42,0.00038356,120]
[336666297,1725005438657,-500.0,0.00038356,120]
[336666298,1725005438667,-501.05464364,0.00038356,120]
[336666299,1725005438676,-500.0,0.00038356,7]
[336666300,1725005438686,-502.63280003,0.00038356,120]
[336666301,1725005438695,-504.05827255,0.00038356,120]
[336666302,1725005438704,-500.0,0.00038356,120]
[336666303,1725005438714,-500.0,0.00038356,120]
[336666304,1725005438723,-501.05861392,0.00038356,120]
[336666305,1725005438732,-500.0,0.00038356,120]
[336666306,1725005438741,-501.45473404,0.00038356,120]
[336666307,1725005438751,-500.0,0.00038356,120]
[336666308,1725005438760,-500.0,0.00038356,120]
[336666309,1725005438770,-500.0,0.00038356,120]
[336666310,1725005438779,-500.0,0.00038356,120]
[336666311,1725005438789,-500.0,0.00038356,120]
[336666312,1725005438798,-500.0,0.00038356,120]
[336666313,1725005438808,-503.02572991,0.00038356,120]
[336666314,1725005438818,-500.0,0.00038356,120]
[336666315,1725005438827,-501.56465971,0.00038356,120]
[336666316,1725005438838,-500.0,0.00038356,120]
[336666317,1725005438848,-500.0,0.00038356,120]
[336666318,1725005438858,-500.0,0.00038356,120]
[336666319,1725005438870,-500.0,0.00038356,120]
[336666320,1725005438880,-503.29758575,0.00038356,120]
[336666321,1725005438890,-302.6741353,0.00038356,120]
[336666322,1725005438900,-500.0,0.00038356,120]
[336666323,1725005438912,-500.0,0.00038356,120]
[336666324,1725005438923,-500.0,0.00038356,120]
[336666325,1725005438933,-500.0,0.00038356,120]
[336666326,1725005438943,-504.79736891,0.00038356,120]
[336666327,1725005438953,-500.0,0.00038356,120]
[336666328,1725005438963,-500.0,0.00038356,120]
[336666329,1725005438975,-500.0,0.00038356,120]
[336666330,1725005438985,-502.08352112,0.00038356,120]
[336666331,1725005438994,-501.82917077,0.00038356,120]
[336666332,1725005439004,-501.2243015,0.00038356,120]
[336666333,1725005439014,-500.0,0.00038356,120]
[336666334,1725005439025,-550.69269132,0.00038356,120]
[336666335,1725005439035,-500.0,0.00038356,120]
[336666336,1725005439046,-500.0,0.00038356,120]
[336666337,1725005439056,-500.0,0.00038356,120]
[336666338,1725005439069,-500.0,0.00038356,120]
[336666339,1725005439080,-372.28753431,0.00038356,120]
[336666340,1725005439089,-500.0,0.00038356,120]
[336666341,1725005439098,-500.0,0.00038356,120]
[336666342,1725005439108,-501.01644731,0.00038356,120]
[336666343,1725005439117,-500.0,0.00038356,120]
[336666344,1725005439128,-500.0,0.00038356,120]
[336666345,1725005439138,-500.0,0.00038356,120]
[336666346,1725005439150,-589.08398287,0.00038356,120]
[336666347,1725005439160,-500.0,0.00038356,120]
[336666348,1725005439170,-500.0,0.00038356,120]
[336666349,1725005439181,-500.0,0.00038356,120]
[336666350,1725005439193,-500.0,0.00038356,120]
[336666351,1725005439203,-502.2377473,0.00038356,120]
[336666352,1725005439212,-500.0,0.00038356,120]
[336666353,1725005439222,-500.0,0.00038356,120]
[336666354,1725005439240,-500.0,0.00038356,120]
[336666355,1725005439256,-500.0,0.00038356,120]
[336666356,1725005439266,-500.0,0.00038356,120]
[336666357,1725005439277,-500.0,0.00038356,120]
[336666358,1725005439290,-500.0,0.00038356,120]
[336666359,1725005439301,-500.0,0.00038356,120]
[336666360,1725005439312,-504.20483376,0.00038356,120]
[336666361,1725005439324,-500.0,0.00038356,120]
[336666362,1725005439334,-500.0,0.00038356,120]
[336666363,1725005439345,-500.0,0.00038356,120]
[336666364,1725005439355,-420.84365521,0.00038356,120]
[336666365,1725005439365,-500.0,0.00038356,120]
[336666366,1725005439375,-500.0,0.00038356,120]
[336666367,1725005439385,-500.0,0.00038356,120]
[336666368,1725005439395,-500.0,0.00038356,120]
[336666369,1725005439404,-500.0,0.00038356,120]
[336666370,1725005439415,-500.0,0.00038356,120]
[336666371,1725005439425,-500.0,0.00038356,120]
[336666372,1725005439434,-500.0,0.00038356,120]
[336666373,1725005439444,-500.0,0.00038356,120]
[336666374,1725005439454,-500.0,0.00038356,120]
[336666376,1725005439464,-500.0,0.00038356,120]
[336666377,1725005439474,-500.0,0.00038356,120]
[336666379,1725005439484,-500.0,0.00038356,120]
[336666382,1725005439495,-500.0,0.00038356,120]
[336666384,1725005439504,-500.0,0.00038356,120]
[336666386,1725005439515,-500.0,0.00038356,120]
[336666388,1725005439525,-500.0,0.00038356,120]
[336666390,1725005439534,-500.0,0.00038356,120]
[336666392,1725005439544,-500.0,0.00038356,120]
[336666394,1725005439554,-500.0,0.00038356,120]
[336666396,1725005439563,-500.0,0.00038356,120]
[336666398,1725005439573,-500.0,0.00038356,120]
[336666400,1725005439583,-500.0,0.00038356,120]
[336666402,1725005439592,-500.0,0.00038356,120]
[336666404,1725005439602,-500.0,0.00038356,120]
[336666406,1725005439613,-500.0,0.00038356,120]
[336666408,1725005439623,-500.0,0.00038356,120]
[336666411,1725005439633,-500.0,0.00038356,120]
[336666413,1725005439643,-500.0,0.00038356,120]
[336666415,1725005439653,-500.0,0.00038356,120]
[336666417,1725005439662,-500.0,0.00038356,120]
[336666419,1725005439672,-500.0,0.00038356,120]
[336666421,1725005439682,-500.0,0.00038356,120]
[336666423,1725005439693,-500.0,0.00038356,120]
[336666424,1725005439703,-503.05145068,0.00038356,120]
[336666425,1725005439714,-500.0,0.00038356,120]
[336666426,1725005439725,-500.0,0.00038356,120]
[336666427,1725005439737,-599.33666041,0.00038356,120]
[336666428,1725005439747,-520.08,0.00038356,120]
[336666429,1725005439757,-502.33329881,0.00038356,120]
[336666430,1725005439767,-500.0,0.00038356,120]
[336666431,1725005439778,-502.89145259,0.00038356,120]
[336666432,1725005439789,-692.9,0.00038356,120]
[336666433,1725005439798,-532.63,0.00038356,120]
[336666434,1725005439808,-500.12366886,0.00038356,120]
[336666435,1725005439818,-500.0,0.00038356,120]
[336666436,1725005439828,-502.21500088,0.00038356,120]
[336666437,1725005439838,-500.0,0.00038356,120]
[336666439,1725005439849,-500.0,0.00038356,120]
[336666440,1725005439859,-500.0,0.00038356,120]
[336666441,1725005439870,-503.89844926,0.00038356,120]
[336666442,1725005439881,-605.15786934,0.00038356,120]
[336666443,1725005439892,-500.0,0.00038356,120]
[336666444,1725005439903,-500.0,0.00038356,120]
[336666445,1725005439915,-247.01205056,0.00038356,120]
[336666446,1725005439926,-500.0,0.00038356,120]
[336666447,1725005439938,-500.0,0.00038356,120]
[336666448,1725005439948,-500.0,0.00038356,120]
[336666449,1725005439960,-500.0,0.00038356,120]
[336666450,1725005439972,-511.74,0.00038356,120]
[336666451,1725005439983,-821.64,0.00038356,120]
[336666452,1725005439994,-500.0,0.00038356,120]
[336666453,1725005440004,-500.0,0.00038356,120]
[336666454,1725005440015,-500.0,0.00038356,120]
[336666455,1725005440026,-500.0,0.00038356,120]
[336666456,1725005440036,-500.0,0.00038356,120]
[336666457,1725005440046,-597.89,0.00038356,120]
[336666458,1725005440058,-500.0,0.00038356,120]
[336666459,1725005440068,-500.0,0.00038356,120]
[336666460,1725005440077,-259.96,0.00038356,120]
[336666461,1725005440087,-500.0,0.00038356,120]
[336666462,1725005440096,-500.0,0.00038356,120]
[336666463,1725005440108,-500.0,0.00038356,120]
[336666464,1725005440117,-325.61953424,0.00038356,120]
[336666465,1725005440126,-500.0,0.00038356,120]
[336666466,1725005440136,-500.0,0.00038356,120]
[336666467,1725005440146,-500.0,0.00038356,120]
[336666468,1725005440155,-500.0,0.00038356,120]
[336666469,1725005440164,-617.46,0.00038356,120]
[336666470,1725005440174,-500.0,0.00038356,120]
[336666471,1725005440183,-409.60287962,0.00038356,120]
[336666472,1725005440193,-171.72825114,0.00038356,120]
[336666473,1725005440202,-511.12900496,0.00038356,120]
[336666474,1725005440212,-500.0,0.00038356,120]
[336666475,1725005440221,-500.0,0.00038356,120]
[336666476,1725005440230,-500.0,0.00038356,120]
[336666477,1725005440241,-504.5131485,0.00038356,120]
[336666478,1725005440252,-501.70695037,0.00038356,120]
[336666479,1725005440261,-500.0,0.00038356,120]
[336666480,1725005440271,-500.0,0.00038356,120]
[336666481,1725005440281,-500.0,0.00038356,120]
[336666482,1725005440290,-500.0,0.00038356,120]
[336666483,1725005440300,-500.0,0.00038356,120]
[336666484,1725005440310,-500.0,0.00038356,120]
[336666485,1725005440319,-500.0,0.00038356,120]
[336666486,1725005440329,-752.49,0.00038356,120]
[336666487,1725005440339,-500.0,0.00038356,120]
[336666488,1725005440348,-502.98860748,0.00038356,120]
[336666489,1725005440358,-500.0,0.00038356,120]
[336666490,1725005440369,-500.0,0.00038356,120]
[336666491,1725005440379,-500.0,0.00038356,120]
[336666492,1725005440389,-500.0,0.00038356,120]
[336666493,1725005440399,-500.0,0.00038356,120]
[336666494,1725005440410,-500.0,0.00038356,80]
[336666495,1725005440422,-500.0,0.00038356,120]
[336666496,1725005440432,-840.74,0.00038356,120]
[336666497,1725005440442,-500.0,0.00038356,120]
[336666498,1725005440452,-1209.44,0.00038356,120]
[336666499,1725005440463,-1476.72,0.00038356,120]
[336666500,1725005440475,-500.0,0.00038356,120]
[336666501,1725005440485,-500.0,0.00038356,120]
[336666502,1725005440497,-500.0,0.00038356,120]
[336666503,1725005440507,-503.68151862,0.00038356,120]
[336666504,1725005440516,-500.0,0.00038356,120]
[336666505,1725005440526,-500.0,0.00038356,120]
[336666506,1725005440535,-500.0,0.00038356,120]
[336666507,1725005440545,-580.55944085,0.00038356,120]
[336666508,1725005440555,-514.43676867,0.00038356,120]
[336666509,1725005440565,-500.0,0.00038356,120]
[336666510,1725005440698,-500.0,0.00038356,120]
[336666511,1725005440711,-500.0,0.00038356,120]
[336666512,1725005440721,-500.0,0.00038356,120]
[336666513,1725005440730,-501.90842142,0.00038356,120]
[336666514,1725005440740,-500.0,0.00038356,120]
[336666515,1725005440750,-500.0,0.00038356,120]
[336666516,1725005440760,-500.0,0.00038356,120]
[336666517,1725005440770,-500.0,0.00038356,120]
[336666518,1725005440781,-500.0,0.00038356,120]
[336666519,1725005440793,-500.0,0.00038356,120]
[336666520,1725005440802,-500.0,0.00038356,120]
[336666521,1725005440812,-500.0,0.00038356,120]
[336666522,1725005440822,-500.0,0.00038356,120]
[336666523,1725005440831,-500.0,0.00038356,120]
[336666524,1725005440841,-500.63866923,0.00038356,120]
[336666525,1725005440852,-500.0,0.00038356,120]
[336666526,1725005440862,-500.0,0.00038356,120]
[336666527,1725005440872,-501.31604962,0.00038356,120]
[336666528,1725005440884,-500.0,0.00038356,120]
[336666529,1725005440894,-500.0,0.00038356,120]
[336666530,1725005440904,-500.0,0.00038356,120]
[336666531,1725005440914,-500.0,0.00038356,120]
[336666532,1725005440925,-201.82732898,0.00038356,120]
[336666533,1725005440935,-500.0,0.00038356,120]
[336666534,1725005440944,-500.0,0.00038356,120]
[336666535,1725005440956,-500.0,0.00038356,120]
[336666536,1725005440966,-500.0,0.00038356,120]
[336666537,1725005440976,-500.0,0.00038356,120]
[336666538,1725005440989,-500.0,0.00038356,120]
[336666539,1725005441000,-500.0,0.00038356,120]
[336666540,1725005441011,-500.0,0.00038356,120]
[336666541,1725005441020,-500.0,0.00038356,120]
[336666542,1725005441030,-500.0,0.00038356,120]
[336666543,1725005441039,-500.0,0.00038356,120]
[336666544,1725005441049,-500.56816843,0.00038356,120]
[336666545,1725005441060,-500.0,0.00038356,120]
[336666546,1725005441069,-4861.46,0.00038356,8]
[336666547,1725005441079,-500.0,0.00038356,120]
[336666548,1725005441089,-515.49504094,0.00038356,120]
[336666549,1725005441098,-500.0,0.00038356,120]
[336666550,1725005441108,-500.0,0.00038356,120]
[336666551,1725005441117,-500.0,0.00038356,120]
[336666552,1725005441126,-500.0,0.00038356,120]
[336666553,1725005441136,-500.0,0.00038356,21]
[336666554,1725005441145,-823.31,0.00038356,120]
[336666555,1725005441155,-500.0,0.00038356,120]
[336666556,1725005441165,-500.0,0.00038356,120]
[336666557,1725005441175,-500.0,0.00038356,120]
[336666558,1725005441185,-500.0,0.00038356,120]
[336666559,1725005441195,-165.077228,0.00038356,2]
[336666560,1725005441204,-500.0,0.00038373,2]
[336666561,1725005441214,-500.0,0.00038627,120]
[336666562,1725005441223,-500.0,0.00038627,120]
[336666563,1725005441233,-44930.051685,0.00038628,2]
[336666564,1725005441243,-500.0,0.00038629,120]
[336666565,1725005441258,-500.0,0.0003863,120]
[336666566,1725005441267,-692.9,0.0003863,120]
[336666567,1725005441277,-821.64,0.0003863,120]
[336666568,1725005441286,-597.89,0.0003863,120]
[336666569,1725005441298,-500.0,0.0003863,120]
[336666570,1725005441307,-500.0,0.0003863,120]
[336666571,1725005441317,-500.0,0.0003863,120]
[336666572,1725005441328,-500.0,0.0003863,120]
[336666573,1725005441337,-500.0,0.0003863,120]
[336666574,1725005441347,-752.49,0.0003863,120]
[336666575,1725005441356,-840.74,0.0003863,120]
[336666576,1725005441365,-500.0,0.0003863,120]
[336666577,1725005441375,-1209.44,0.0003863,120]
[336666578,1725005441384,-1476.72,0.0003863,120]
[336666579,1725005441393,-500.0,0.0003863,120]
[336666580,1725005441402,-500.0,0.0003863,120]
[336666581,1725005441411,-500.0,0.0003863,120]
[336666582,1725005441421,-500.0,0.0003863,120]
[336666583,1725005441431,-500.0,0.0003863,120]
[336666584,1725005441440,-500.0,0.0003863,120]
[336666585,1725005441451,-500.0,0.0003863,120]
[336666586,1725005441461,-500.0,0.0003863,120]
[336666587,1725005441471,-500.0,0.0003863,120]
[336666588,1725005441480,-500.0,0.0003863,120]
[336666589,1725005441489,-500.0,0.0003863,120]
[336666590,1725005441500,-500.0,0.0003863,120]
[336666591,1725005441510,-500.0,0.0003863,120]
[336666592,1725005441520,-500.0,0.0003863,120]
[336666593,1725005441530,-500.0,0.0003863,120]
[336666594,1725005441541,-4861.46,0.0003863,8]
[336666595,1725005441550,-500.0,0.0003863,120]
[336666596,1725005441560,-500.0,0.0003863,120]
[336666597,1725005441569,-500.0,0.0003863,120]
[336666598,1725005441578,-494.76433442,0.0003863,120]
[336666599,1725005441587,-823.31,0.0003863,120]
[336666600,1725005441599,-500.0,0.0003863,120]
[336666601,1725005441609,-533.29,0.0003863,120]
[336666602,1725005441618,-1443.38474349,0.00038872,2]
[336666603,1725005441628,-465.09520225,0.00038903,120]
[336666604,1725005441637,-502.6677539,0.00038903,30]
[336666605,1725005441647,-502.23709377,0.00038903,120]
[336666606,1725005441656,-500.0,0.00038904,120]
[336666607,1725005441666,-692.9,0.00038904,120]
[336666608,1725005441675,-821.64,0.00038904,120]
[336666609,1725005441686,-597.89,0.00038904,120]
[336666610,1725005441696,-500.0,0.00038904,120]
[336666611,1725005441707,-752.49,0.00038904,120]
[336666612,1725005441718,-840.74,0.00038904,120]
[336666613,1725005441730,-1209.44,0.00038904,120]
[336666614,1725005441742,-1476.72,0.00038904,120]
[336666615,1725005441753,-500.0,0.00038904,120]
[336666616,1725005441762,-500.0,0.00038904,120]
[336666617,1725005441772,-500.0,0.00038904,120]
[336666618,1725005441781,-500.0,0.00038904,120]
[336666619,1725005441792,-500.0,0.00038904,120]
[336666620,1725005441801,-4861.46,0.00038904,8]
[336666621,1725005441811,-500.0,0.00038904,120]
[336666622,1725005441820,-823.31,0.00038904,120]
[336666623,1725005441829,-500.0,0.00038904,120]
[336666624,1725005441838,-150.0,0.00039,30]
[336666625,1725005441848,-1000.0,0.00039,39]
[336666626,1725005441859,-500.0,0.00039177,120]
[336666627,1725005441870,-500.0,0.00039178,120]
[336666628,1725005441879,-692.9,0.00039178,120]
[336666629,1725005441891,-821.64,0.00039178,120]
[336666630,1725005441900,-597.89,0.00039178,120]
[336666631,1725005441909,-562.29,0.00039178,120]
[336666632,1725005441918,-752.49,0.00039178,120]
[336666633,1725005441928,-840.74,0.00039178,120]
[336666634,1725005441938,-1209.44,0.00039178,120]
[336666635,1725005441950,-1476.72,0.00039178,120]
[336666636,1725005441959,-500.0,0.00039178,120]
[336666637,1725005441968,-500.0,0.00039178,120]
[336666638,1725005441979,-4861.46,0.00039178,8]
[336666639,1725005441988,-508.3813722,0.00039178,120]
[336666640,1725005441997,-823.31,0.00039178,120]
[336666641,1725005442009,-500.0,0.00039178,120]
[336666642,1725005442018,-500.0,0.00039452,120]
[336666643,1725005442028,-692.9,0.00039452,120]
[336666644,1725005442040,-821.64,0.00039452,120]
[336666645,1725005442051,-597.89,0.00039452,120]
[336666646,1725005442062,-752.49,0.00039452,120]
[336666647,1725005442075,-840.74,0.00039452,120]
[336666648,1725005442086,-1209.44,0.00039452,120]